Workbook

Sheet Angaben
B1: Übergangsbereichsrechner
B3: =IFERROR(CONCATENATE(" Beitragsberechnung vers.pflichtiger Beschäftigter innerhalb des Übergangsbereichs (",UGrenz+0.01," € bis ",TEXT(OGrenz,"0.000,00")," €)"),"Beitragsberechnung vers.pfl. Beschäftigter innerhalb der Gleitzone ") -> Beitragsberechnung vers.pflichtiger Beschäftigter innerhalb des Übergangsbereichs (450,01 € bis 1.300,00 €)
B4: ="Beitragszeitraum: 2. Halbjahr " & Zeitraum -> Beitragszeitraum: 2. Halbjahr 2019
B5: Zutreffende Sonderregelungen: | G5: Individuelle Angaben:
G7: Angabe des individuellen KV-Zusatzbeitragssatzes: | J7: =BS_KV_Zu/100 -> 0.009
G9: Gültiger KV-Beitragssatz: | J9: =IFERROR(BS_KV_allg/100,"") -> 0.146
G12: Beitragszuschlag wegen Kinderlosigkeit in der PV:
G14: Allgemeine Beitragssätze der Sozialversicherung:
G16: Durchschnittlicher Gesamtsozialversicherungsbeitragssatz | J16: =IFERROR(Steuerung!C7/100,"") -> 0.3965
G18: allgemeiner Beitragssatz Krankenversicherung | J18: =IFERROR(Steuerung!C8/100,"") -> 0.146
G19: durchschnittl. Zusatzbeitragssatz Krankenversicherung | J19: =IFERROR(Steuerung!C12/100,"") -> 0.009
G20: Beitragssatz Rentenversicherung | J20: =IFERROR(nRV_Satz_Jahr/100,"") -> 0.186
G21: Beitragssatz Arbeitslosenversicherung | J21: =IFERROR(nAV_Satz_Jahr/100,"") -> 0.025
G22: Beitragssatz Pflegeversicherung | J22: =IFERROR(nPV_Satz_Jahr/100,"") -> 0.0305
G24: Zutreffende Arbeitgeber-Umlagen
G26: U1 - Krankheitsfall | J26: =S_U1_Satz -> 0
G28: U2 - Mutterschaft | J28: =S_U2_Satz -> 0
G30: Insolvenzumlage | J30: =IFERROR(S_U3_Satz,"") -> 0

Sheet Dialog
B1: =CONCATENATE(" Beitragsberechnung vers.pfl. Beschäftigter innerhalb des Übergangsbereichs (",UGrenz+0.01," € bis ",TEXT(OGrenz,"0.000,00")," €)") -> Beitragsberechnung vers.pfl. Beschäftigter innerhalb des Übergangsbereichs (450,01 € bis 1.300,00 €)
B2: ="Beitragszeitraum: 2. Halbjahr " & Zeitraum -> Beitragszeitraum: 2. Halbjahr 2019
B4: Berechnungsgrundlagen: | F4: Aktive Sonderregelungen: | K4: Mehrfachbeschäftigung
D5: Arbeitsentgelt für diese Tätigkeit | E5: 1200 | F5: KV:
D7: Übergangsbereichsentgelt für diese Tätigkeit: | E7: 1187.11 | F7: RV:
D9: gesamtes monatliches Arbeitsentgelt: | E9: 1600 | F9: AV:
D11: gesamtes monatliches Übergangsbereichsentgelt: | E11: - | F11: PV:
F13: Sonderfälle: | G13: Mehrfachbeschäftigung
K16: Teilarbeitsentgelt für die Hauptbeschäftigung | L16: 1200
B17: Voller SV-Beitrag: | D17: Arbeitgeberanteile: | F17: Arbeitnehmeranteile: | H17: Beitragssatz: | K17: Übergangsbereichsentgelt für die Hauptbeschäftigung | L17: 1187.11
B18: KV: | C18: 0 | D18: KV: | E18: 0 | F18: KV: | G18: 0 | H18: KV: | I18: 0 | K18: Teilarbeitsentgelt für die Nebenbeschäftigung | L18: 400
B20: =IF(AND(S_KV_PV_frei<>TRUE,BS_KV_Zu<>0),"Zusatz KV:","") -> Zusatz KV: | D20: =B20 -> Zusatz KV: | F20: =B20 -> Zusatz KV: | H20: =B20 -> Zusatz KV:
N21: =L21*3 -> 0
B22: RV: | C22: - | D22: RV: | E22: - | F22: RV: | G22: - | H22: RV: | I22: -
B24: AV: | C24: 29.68 | D24: AV: | E24: 15 | F24: AV: | G24: 14.68 | H24: AV: | I24: 0.025
B26: PV: | C26: - | D26: PV: | E26: - | F26: PV: | G26: - | H26: PV: | I26: -
B28: =IF(S_PV_Zu=1,"Zuschl. PV:","") ->  | D28: =B28 ->  | F28: =B28 ->  | H28: =B28 -> 
B30: SV-Gesamt: | C30: =SUM(C18:C28) -> 29.68 | D30: SV-Gesamt: | E30: =SUM(E18:E28) -> 15 | F30: SV-Gesamt: | G30: =SUM(G18:G28) -> 14.68
B32: =IF(S_U1=TRUE,"U1:","") ->  | D32: =B32 ->  | H32: =B32 -> 
B33: =IF(S_U2=TRUE,"U2:","") ->  | D33: =B33 ->  | H33: =B33 -> 
B34: =IF(S_U3=TRUE,"Insolvenzuml.:","") ->  | D34: =B34 ->  | H34: =B34 -> 
B36: =IF(OR(S_U1=TRUE,S_U2=TRUE,S_U3=TRUE),"Uml.-Gesamt:","") ->  | C36: =IF(OR(S_U1=TRUE,S_U2=TRUE,S_U3=TRUE),SUM(C32:C34),"") ->  | D36: =B36 ->  | E36: =IF(OR(S_U1=TRUE,S_U2=TRUE,S_U3=TRUE),SUM(E32:E35),"") -> 
B38: =IF(OR(S_U1=TRUE,S_U2=TRUE,S_U3=TRUE),"Insgesamt:","") ->  | C38: =IF(OR(S_U1=TRUE,S_U2=TRUE,S_U3=TRUE),SUM(C30:C34),"") ->  | D38: =B38 ->  | E38: =IF(OR(S_U1=TRUE,S_U2=TRUE,S_U3=TRUE),SUM(E30:E34),"") ->  | F38: =B38 ->  | G38: =IF(OR(S_U1=TRUE,S_U2=TRUE,S_U3=TRUE),SUM(G30:G34),"") -> 

Sheet Tabelle
C1: Beitragspflichtige Einnahmen und Beitragsberechnung versicherungspfl. Beschäftigter
C2: =CONCATENATE("innerhalb des Übergangsbereichs von ",UGrenz+0.01," € bis ",TEXT(OGrenz,"0.000,00")," €") -> innerhalb des Übergangsbereichs von 450,01 € bis 1.300,00 €
C3: (§ 20 Abs.2 SGB IV, § 344 Abs.4 SGB III, § 226 Abs.4 SGB V, § 163 Abs.10 SGB VI, § 58 Abs.5 SGB XI)
C5: ="Beitragszeitraum: 2. Halbjahr " & Zeitraum -> Beitragszeitraum: 2. Halbjahr 2019
C6: monatliches Arbeitsentgelt | D6: ="Beitragsbemes-sungsgrundlage bei: "&Steuerung!C7&" %" -> Beitragsbemes-sungsgrundlage bei: 39,65 % | F6: monatliches Arbeitsentgelt | G6: =D6 -> Beitragsbemes-sungsgrundlage bei: 39,65 %
C7: =UGrenz+0.01 -> 450.01 | D7: =ROUND(Faktor * UGrenz + ((OGrenz / (OGrenz - UGrenz)) - (UGrenz / (OGrenz - UGrenz)) * Faktor) * (C7 - UGrenz), 2) -> 340.48 | F7: =C56+5 -> 700 | G7: =ROUND(Faktor * UGrenz + ((OGrenz / (OGrenz - UGrenz)) - (UGrenz / (OGrenz - UGrenz)) * Faktor) * (F7 - UGrenz), 2) -> 622.68
C8: =UGrenz+5 -> 455 | D8: =ROUND(Faktor * UGrenz + ((OGrenz / (OGrenz - UGrenz)) - (UGrenz / (OGrenz - UGrenz)) * Faktor) * (C8 - UGrenz), 2) -> 346.11 | F8: =F7+5 -> 705 | G8: =ROUND(Faktor * UGrenz + ((OGrenz / (OGrenz - UGrenz)) - (UGrenz / (OGrenz - UGrenz)) * Faktor) * (F8 - UGrenz), 2) -> 628.33
C9: =C8+5 -> 460 | D9: =ROUND(Faktor * UGrenz + ((OGrenz / (OGrenz - UGrenz)) - (UGrenz / (OGrenz - UGrenz)) * Faktor) * (C9 - UGrenz), 2) -> 351.76 | F9: =F8+5 -> 710 | G9: =ROUND(Faktor * UGrenz + ((OGrenz / (OGrenz - UGrenz)) - (UGrenz / (OGrenz - UGrenz)) * Faktor) * (F9 - UGrenz), 2) -> 633.97
C10: 465 | D10: 357.4 | F10: 715 | G10: 639.62
C11: 470 | D11: 363.05 | F11: 720 | G11: 645.26
C12: 475 | D12: 368.69 | F12: 725 | G12: 650.91
C13: 480 | D13: 374.34 | F13: 730 | G13: 656.55
C14: 485 | D14: 379.98 | F14: 735 | G14: 662.19
C15: 490 | D15: 385.62 | F15: 740 | G15: 667.84
C16: 495 | D16: 391.27 | F16: 745 | G16: 673.48
C17: 500 | D17: 396.91 | F17: 750 | G17: 679.13
C18: 505 | D18: =ROUND(Faktor * UGrenz + ((OGrenz / (OGrenz - UGrenz)) - (UGrenz / (OGrenz - UGrenz)) * Faktor) * (C18 - UGrenz), 2) -> 402.56 | F18: 755 | G18: =ROUND(Faktor * UGrenz + ((OGrenz / (OGrenz - UGrenz)) - (UGrenz / (OGrenz - UGrenz)) * Faktor) * (F18 - UGrenz), 2) -> 684.77
C19: 510 | D19: 408.2 | F19: 760 | G19: =ROUND(Faktor * UGrenz + ((OGrenz / (OGrenz - UGrenz)) - (UGrenz / (OGrenz - UGrenz)) * Faktor) * (F19 - UGrenz), 2) -> 690.42
C20: 515 | D20: 413.85 | F20: 765 | G20: =ROUND(Faktor * UGrenz + ((OGrenz / (OGrenz - UGrenz)) - (UGrenz / (OGrenz - UGrenz)) * Faktor) * (F20 - UGrenz), 2) -> 696.06
C21: 520 | D21: 419.49 | F21: 770 | G21: =ROUND(Faktor * UGrenz + ((OGrenz / (OGrenz - UGrenz)) - (UGrenz / (OGrenz - UGrenz)) * Faktor) * (F21 - UGrenz), 2) -> 701.7
C22: 525 | D22: 425.13 | F22: 775 | G22: =ROUND(Faktor * UGrenz + ((OGrenz / (OGrenz - UGrenz)) - (UGrenz / (OGrenz - UGrenz)) * Faktor) * (F22 - UGrenz), 2) -> 707.35
C23: =C22+5 -> 530 | D23: 430.78 | F23: 780 | G23: =ROUND(Faktor * UGrenz + ((OGrenz / (OGrenz - UGrenz)) - (UGrenz / (OGrenz - UGrenz)) * Faktor) * (F23 - UGrenz), 2) -> 712.99
C24: 535 | D24: 436.42 | F24: 785 | G24: 718.64
C25: 540 | D25: 442.07 | F25: 790 | G25: 724.28
C26: 545 | D26: 447.71 | F26: 795 | G26: 729.93
C27: 550 | D27: 453.36 | F27: 800 | G27: 735.57
C28: 555 | D28: 459 | F28: 805 | G28: 741.21
C29: 560 | D29: 464.64 | F29: =F28+5 -> 810 | G29: =ROUND(Faktor * UGrenz + ((OGrenz / (OGrenz - UGrenz)) - (UGrenz / (OGrenz - UGrenz)) * Faktor) * (F29 - UGrenz), 2) -> 746.86
C30: =C29+5 -> 565 | D30: 470.29 | F30: =F29+5 -> 815 | G30: =ROUND(Faktor * UGrenz + ((OGrenz / (OGrenz - UGrenz)) - (UGrenz / (OGrenz - UGrenz)) * Faktor) * (F30 - UGrenz), 2) -> 752.5
C31: 570 | D31: 475.93 | F31: =F30+5 -> 820 | G31: =ROUND(Faktor * UGrenz + ((OGrenz / (OGrenz - UGrenz)) - (UGrenz / (OGrenz - UGrenz)) * Faktor) * (F31 - UGrenz), 2) -> 758.15
C32: 575 | D32: 481.58 | F32: 825 | G32: 763.79
C33: 580 | D33: 487.22 | F33: 830 | G33: 769.44
C34: 585 | D34: 492.87 | F34: 835 | G34: 775.08
C35: 590 | D35: 498.51 | F35: 840 | G35: 780.72
C36: 595 | D36: 504.15 | F36: 845 | G36: 786.37
C37: 600 | D37: 509.8 | F37: 850 | G37: 792.01
C38: 605 | D38: 515.44 | F38: 855 | G38: 797.66
C39: 610 | D39: 521.09 | F39: 860 | G39: 803.3
C40: 615 | D40: 526.73 | F40: 865 | G40: 808.95
C41: 620 | D41: 532.38 | F41: 870 | G41: =ROUND(Faktor * UGrenz + ((OGrenz / (OGrenz - UGrenz)) - (UGrenz / (OGrenz - UGrenz)) * Faktor) * (F41 - UGrenz), 2) -> 814.59
C42: 625 | D42: 538.02 | F42: 875 | G42: 820.24
C43: 630 | D43: 543.66 | F43: 880 | G43: 825.88
C44: 635 | D44: 549.31 | F44: 885 | G44: 831.52
C45: 640 | D45: 554.95 | F45: 890 | G45: 837.17
C46: =C45+5 -> 645 | D46: 560.6 | F46: =F45+5 -> 895 | G46: 842.81
C47: =C46+5 -> 650 | D47: =ROUND(Faktor * UGrenz + ((OGrenz / (OGrenz - UGrenz)) - (UGrenz / (OGrenz - UGrenz)) * Faktor) * (C47 - UGrenz), 2) -> 566.24 | F47: =F46+5 -> 900 | G47: =ROUND(Faktor * UGrenz + ((OGrenz / (OGrenz - UGrenz)) - (UGrenz / (OGrenz - UGrenz)) * Faktor) * (F47 - UGrenz), 2) -> 848.46
C48: 655 | D48: 571.89 | F48: 905 | G48: 854.1
C49: 660 | D49: 577.53 | F49: 910 | G49: 859.75
C50: 665 | D50: 583.17 | F50: 915 | G50: 865.39
C51: 670 | D51: 588.82 | F51: 920 | G51: 871.03
C52: 675 | D52: 594.46 | F52: 925 | G52: 876.68
C53: 680 | D53: 600.11 | F53: 930 | G53: 882.32
C54: 685 | D54: 605.75 | F54: 935 | G54: 887.97
C55: 690 | D55: 611.4 | F55: 940 | G55: 893.61
C56: 695 | D56: 617.04 | F56: 945 | G56: 899.26
C58: =F56+5 -> 950 | D58: 904.9 | F58: =C93+5 -> 1130 | G58: 1108.09
C59: 955 | D59: 910.54 | F59: 1135 | G59: 1113.74
C60: 960 | D60: 916.19 | F60: 1140 | G60: 1119.38
C61: 965 | D61: 921.83 | F61: 1145 | G61: 1125.03
C62: 970 | D62: 927.48 | F62: 1150 | G62: 1130.67
C63: 975 | D63: 933.12 | F63: 1155 | G63: 1136.32
C64: 980 | D64: 938.77 | F64: 1160 | G64: 1141.96
C65: 985 | D65: 944.41 | F65: 1165 | G65: 1147.6
C66: 990 | D66: 950.05 | F66: 1170 | G66: 1153.25
C67: 995 | D67: 955.7 | F67: 1175 | G67: 1158.89
C68: 1000 | D68: 961.34 | F68: 1180 | G68: 1164.54
C69: 1005 | D69: 966.99 | F69: 1185 | G69: 1170.18
C70: 1010 | D70: 972.63 | F70: 1190 | G70: 1175.83
C71: 1015 | D71: 978.28 | F71: 1195 | G71: 1181.47
C72: 1020 | D72: 983.92 | F72: 1200 | G72: 1187.11
C73: 1025 | D73: 989.56 | F73: 1205 | G73: 1192.76
C74: 1030 | D74: 995.21 | F74: 1210 | G74: 1198.4
C75: 1035 | D75: 1000.85 | F75: 1215 | G75: 1204.05
C76: 1040 | D76: 1006.5 | F76: 1220 | G76: 1209.69
C77: 1045 | D77: 1012.14 | F77: 1225 | G77: 1215.34
C78: 1050 | D78: 1017.79 | F78: 1230 | G78: 1220.98
C79: 1055 | D79: 1023.43 | F79: 1235 | G79: 1226.62
C80: 1060 | D80: 1029.07 | F80: 1240 | G80: 1232.27
C81: 1065 | D81: 1034.72 | F81: 1245 | G81: 1237.91
C82: 1070 | D82: 1040.36 | F82: 1250 | G82: 1243.56
C83: 1075 | D83: 1046.01 | F83: 1255 | G83: 1249.2
C84: 1080 | D84: 1051.65 | F84: 1260 | G84: 1254.85
C85: 1085 | D85: 1057.3 | F85: 1265 | G85: 1260.49
C86: 1090 | D86: 1062.94 | F86: 1270 | G86: 1266.13
C87: =C86+5 -> 1095 | D87: =ROUND(Faktor * UGrenz + ((OGrenz / (OGrenz - UGrenz)) - (UGrenz / (OGrenz - UGrenz)) * Faktor) * (C87 - UGrenz), 2) -> 1068.58 | F87: =F86+5 -> 1275 | G87: =ROUND(Faktor * UGrenz + ((OGrenz / (OGrenz - UGrenz)) - (UGrenz / (OGrenz - UGrenz)) * Faktor) * (F87 - UGrenz), 2) -> 1271.78
C88: 1100 | D88: 1074.23 | F88: 1280 | G88: 1277.42
C89: 1105 | D89: 1079.87 | F89: 1285 | G89: 1283.07
C90: 1110 | D90: 1085.52 | F90: 1290 | G90: 1288.71
C91: =C90+5 -> 1115 | D91: =ROUND(Faktor * UGrenz + ((OGrenz / (OGrenz - UGrenz)) - (UGrenz / (OGrenz - UGrenz)) * Faktor) * (C91 - UGrenz), 2) -> 1091.16 | F91: =F90+5 -> 1295 | G91: =ROUND(Faktor * UGrenz + ((OGrenz / (OGrenz - UGrenz)) - (UGrenz / (OGrenz - UGrenz)) * Faktor) * (F91 - UGrenz), 2) -> 1294.36
C92: 1120 | D92: 1096.81 | F92: 1300 | G92: 1300
C93: 1125 | D93: 1102.45

Sheet Steuerung (hidden)
A1: Bezeichnung | B1: Rückgabe | C1: Wert | D1: TabellenSpalte
A2: Gewähltes Jahr | B2: =LC_Liste_Jahr -> 1 | C2: =VALUE(RIGHT(VLOOKUP(B2,Jahr,2,0),4)) -> 2019
A3: Beitragszeitraum | B3: 1 | C3: =IFERROR(VLOOKUP(B3,Jahr,D3,0),"Fehler") -> 2019 | D3: =SUMIF(Listen!$F$19:$U$20,A3,Listen!$F$20:$U$20) -> 2
A4: Untergrenze | B4: =B2 -> 1 | C4: =VLOOKUP($B4,Jahr,$D4,0) -> 450 | D4: =SUMIF(Listen!$F$19:$U$20,A4,Listen!$F$20:$U$20) -> 11
A5: Obergrenze | B5: =B2 -> 1 | C5: =VLOOKUP($B5,Jahr,$D5,0) -> 1300 | D5: =SUMIF(Listen!$F$19:$U$20,A5,Listen!$F$20:$U$20) -> 12
A6: Faktor | C6: =ROUND(30/$C$7,4) -> 0.7566
A7: Summe SV | B7: =B2 -> 1 | C7: =VLOOKUP(B7,Jahr,D7,0) -> 39.65 | D7: =SUMIF(Listen!$F$19:$U$20,A7,Listen!$F$20:$U$20) -> 3
A8: KV allg | B8: =B2 -> 1 | C8: 14.6 | D8: =SUMIF(Listen!$F$19:$U$20,A8,Listen!$F$20:$U$20) -> 9
A9: RV | B9: =B2 -> 1 | C9: 18.6 | D9: =SUMIF(Listen!$F$19:$U$20,A9,Listen!$F$20:$U$20) -> 5
A10: AV | B10: =B2 -> 1 | C10: 2.5 | D10: =SUMIF(Listen!$F$19:$U$20,A10,Listen!$F$20:$U$20) -> 6
A11: PV | B11: =B2 -> 1 | C11: 3.05 | D11: =SUMIF(Listen!$F$19:$U$20,A11,Listen!$F$20:$U$20) -> 7
A12: Zusatz KV | B12: =B2 -> 1 | C12: 0.9 | D12: =SUMIF(Listen!$F$19:$U$20,A12,Listen!$F$20:$U$20) -> 4
A13: KV erm | B13: =B2 -> 1 | C13: =VLOOKUP(B13,Jahr,D13,0) -> 14 | D13: =SUMIF(Listen!$F$19:$U$20,A13,Listen!$F$20:$U$20) -> 10
A14: KV allg | B14: =B2 -> 1 | C14: =VLOOKUP(B14,Jahr,D14,0) -> 14.6 | D14: =SUMIF(Listen!$F$19:$U$20,A14,Listen!$F$20:$U$20) -> 9
A15: KV Beitragssatz | B15: =IF(S_BS_allg,1,2) -> 1 | C15: =IF(S_KV_allg_erm.BS=2,C13,C14) -> 14.6 | F15: S_BS_allg | G15: TRUE
A16: KV individueller ZusatzBS | B16: 14 | C16: =VLOOKUP(B16,KV,2,0)*100 -> 0.9 | F16: S_BS_ermäßigt | G16: FALSE
A17: RV Knappsch. | B17: =B2 -> 1 | C17: =VLOOKUP(B17,Jahr,D17,0) -> 24.7 | D17: =SUMIF(Listen!$F$19:$U$20,A17,Listen!$F$20:$U$20) -> 8
A18: AG-Ant. Sachsen | B18: =B2 -> 1 | C18: =VLOOKUP(B18,Jahr,D18,0) -> 0.01025 | D18: =SUMIF(Listen!$F$19:$U$20,A18,Listen!$F$20:$U$20) -> 13
A19: AN-Ant. Sachsen | B19: =B2 -> 1 | C19: =VLOOKUP(B19,Jahr,D19,0) -> 0 | D19: =SUMIF(Listen!$F$19:$U$20,A19,Listen!$F$20:$U$20) -> 14
A20: Zuschlag wg Kinderlosigkeit | B20: 2 | C20: =IF(S_PV_Zu=1,VLOOKUP(B2,Jahr,D20,0),0) -> 0 | D20: =SUMIF(Listen!$F$19:$U$20,A20,Listen!$F$20:$U$20) -> 16
A21: U1 - Krankheitsfall | B21: FALSE | C21: 0
A22: U2 - Mutterschaft | B22: FALSE | C22: 0
A23: Insolvenzgeld | B23: FALSE | C23: =IF(S_U3=TRUE,VLOOKUP(B5,Jahr,D23,0),0) -> 0 | D23: =SUMIF(Listen!$F$19:$U$20,A23,Listen!$F$20:$U$20) -> 15
A25: Frei KV/PV | B25: FALSE
A26: PV Sachsen | B26: FALSE
A27: Frei RV | B27: FALSE
A28: RV nur AG | B28: FALSE
A29: RV Knappsch. | B29: FALSE
A30: nur AV | B30: 11
A31: Frei AV | B31: FALSE
A33: Sonderfall 1 | B33: FALSE
A34: Sonderfall 2 | B34: FALSE
A35: Sonderfall2 Option | B35: =IF(S_Sonder_2_Opt1,1,2) -> 2 | F35: S_Sonder_2_Opt1 | I35: =IF(S_Sonder_2_Opt1,1,2) -> 2
A36: Mehrfachbesch. | B36: FALSE | F36: S_Sonder_2_Opt2
A37: Sonderfall 4 | B37: FALSE
A38: Azubi
A40: Auswahl Sonderfall | B40: =INDIRECT("Steuerung!A"&58+nAuswahl_Sonder) -> 0 | C40: =SUM(C61:C69) -> 2
A41: Auswahl KV | C41: =SUM(C72:C74) -> 12
A42: Auswahl PV | C42: =SUM(C77:C79) -> 20
A43: Auswahl RV | C43: =SUM(C82:C86) -> 30
A44: Auswahl AV | C44: =SUM(C89:C91) -> 40
A45: PV Kinderzuschlag | B45: =IF(AND(S_KV_PV_frei<>TRUE,S_PV_Zu=1),TRUE) -> FALSE | C45: =IF(B45,50,"") -> 
A48: Opt_Sond2_Tage
A49: Opt_Sond2_Stunden
A50: Opt_Sond2_Wostu
A51: Opt_Sond2_Entgelt
A52: AE
A53: Sond3_Entgelt
A54: Sond3_Sonstentgelt
A55: Sond3_Quotient | B55: 0.2727272727
A57: S2_O1_O2 | B57: =IF(S_Sonder_2_Opt=1," Tagen"," geleist. h ") -> geleist. h
A58: Anzahl_S2_O1_O2 | B58: =IF(S_Sonder_2_Opt=1,VALUE(B48),VALUE(B49)) -> 0
A59: S2_O1_O2_Zusatz | B59: =IF(S_Sonder_2_Opt=2,"/ "&VALUE(B50)&" h wtl. Regel-AZ","") -> / 0 h wtl. Regel-AZ | H59: S_Sonder_1 | I59: S_Sonder_2 | J59: S_Mehrfach | K59: S_Sonder_4
H60: =S_Sonder_1 -> FALSE | I60: =S_Sonder_2 -> FALSE | J60: =S_Mehrfach -> FALSE | K60: =S_Sonder_4 -> FALSE
A61: AE ohne Sonder | B61: =IF(AND(S_Sonder_1<>TRUE,S_Sonder_2<>TRUE,S_Mehrfach<>TRUE,S_Sonder_4<>TRUE),TRUE) -> TRUE | C61: =IF(B61,1,"") -> 1 | E61: 1 | F61: OHNE | H61: F | I61: F | J61: F | K61: F
A62: Mehrfachbesch. | B62: =IF(AND(S_Sonder_1<>TRUE,S_Sonder_2<>TRUE,S_Mehrfach=TRUE,S_Sonder_4<>TRUE),TRUE) -> FALSE | C62: =IF(B62,2,"") ->  | E62: 2 | F62: Mehrfach | H62: F | I62: F | J62: W | K62: F
A63: Teilmonate | B63: =IF(AND(S_Sonder_1<>TRUE,S_Sonder_2=TRUE,S_Mehrfach<>TRUE,S_Sonder_4<>TRUE),TRUE) -> FALSE | C63: =IF(B63,3,"") ->  | E63: 3 | F63: Teil monat | H63: F | I63: W | J63: F | K63: F
A64: mit Einmalzahlung | B64: =IF(AND(S_Sonder_1<>TRUE,S_Sonder_2<>TRUE,S_Mehrfach<>TRUE,S_Sonder_4=TRUE),TRUE) -> FALSE | C64: =IF(B64,4,"") ->  | E64: 4 | F64: Einmal zahlung | H64: F | I64: F | J64: F | K64: W
A65: Teilmonat bei Mehrfach | B65: =IF(AND(S_Sonder_1<>TRUE,S_Sonder_2=TRUE,S_Mehrfach=TRUE,S_Sonder_4<>TRUE),TRUE) -> FALSE | C65: =IF(B65,5,"") ->  | E65: 5 | F65: Teilmonat bei Mehrfach beschäftigung | H65: F | I65: W | J65: W | K65: F
A66: Einmalzahlung bei Teilmonat | B66: =IF(AND(S_Sonder_1<>TRUE,S_Sonder_2=TRUE,S_Mehrfach<>TRUE,S_Sonder_4=TRUE),TRUE) -> FALSE | C66: =IF(B66,6,"") ->  | E66: 6 | F66: Einmalzahlung bei Teilmonat | H66: F | I66: W | J66: F | K66: W
A67: AE unter UGrenze | B67: =IF(AND(S_Sonder_1=TRUE,S_Sonder_2<>TRUE,S_Mehrfach<>TRUE,S_Sonder_4<>TRUE),TRUE) -> FALSE | C67: =IF(B67,7,"") ->  | E67: 7 | F67: unter UnterGrenze | H67: W | I67: F | J67: F | K67: F
A68: AE unter UGrenze und Teilmonat | B68: =IF(AND(S_Sonder_1=TRUE,S_Sonder_2=TRUE,S_Mehrfach<>TRUE,S_Sonder_4<>TRUE),TRUE) -> FALSE | C68: =IF(B68,8,"") ->  | E68: 8 | F68: unter UnterGrenze und Teilmonat | H68: W | I68: W | J68: F | K68: F
C69: =SUM(C61:C68) -> 1 | E69: 0 | F69: nicht zulässig
A72: KV ohne Sonder | B72: =IF(S_KV_PV_frei<>TRUE,TRUE) -> TRUE | C72: =IF(B72,10,"") -> 10
A73: KV frei | B73: =IF(S_KV_PV_frei=TRUE,TRUE) -> FALSE | C73: =IF(B73,11,"") -> 
A74: KV allg / ermäßigt | B74: =IF((S_KV_PV_frei<>TRUE),TRUE) -> TRUE | C74: =IF(B74,S_KV_allg_erm.BS+1,"") -> 2
A77: PV ohne Sonder | B77: =IF(AND(S_KV_PV_frei<>TRUE,S_PV_Sachsen<>TRUE),TRUE) -> TRUE | C77: =IF(B77,20,"") -> 20
A78: PV frei | B78: =IF(S_KV_PV_frei=TRUE,TRUE) -> FALSE | C78: =IF(B78,21,"") -> 
A79: PV Sachsen | B79: =IF(AND(S_KV_PV_frei<>TRUE,S_PV_Sachsen=TRUE),TRUE) -> FALSE | C79: =IF(B79,22,"") -> 
A82: RV ohne Sonder | B82: =IF(AND(S_RV_frei<>TRUE,S_RV_aus_t.E.<>TRUE,S_RV_Knapp<>TRUE),TRUE) -> TRUE | C82: =IF(B82,30,"") -> 30
A83: RV frei | B83: =IF(S_RV_frei=TRUE,TRUE) -> FALSE | C83: =IF(B83,31,"") -> 
A84: RV nur AG | B84: =IF(AND(S_RV_frei<>TRUE,S_RV_aus_t.E.=TRUE,S_RV_Knapp<>TRUE),TRUE) -> FALSE | C84: =IF(B84,32,"") -> 
A85: RV Knappschaft | B85: =IF(AND(S_RV_frei<>TRUE,S_RV_aus_t.E.<>TRUE,S_RV_Knapp=TRUE),TRUE) -> FALSE | C85: =IF(B85,33,"") -> 
A86: RV nur AG und Knappschaft | B86: =IF(AND(S_RV_frei<>TRUE,S_RV_aus_t.E.=TRUE,S_RV_Knapp=TRUE),TRUE) -> FALSE | C86: =IF(B86,34,"") -> 
A89: AV ohne Sonder | B89: =IF(S_AV_frei<>TRUE,TRUE) -> TRUE | C89: =IF(B89,40,"") -> 40
A90: AV frei | B90: =IF(S_AV_frei=TRUE,TRUE) -> FALSE | C90: =IF(B90,41,"") ->  | F90: 1200 | G90: 18.6 | H90: =F90*G90/100 -> 223.2 | I90: =H90/2 -> 111.6
F91: 384.54 | G91: 24.7 | H91: =F91*G91/100 -> 94.98138 | I91: =H91/2 -> 47.49069
H93: AG = ÜE * Satz - ((ÜE * Satz * Faktor)- (AE * Satz))
H95: ÜE * Satz | I95: ÜE * Satz * Faktor | J95: AE * Satz | K95: ((ÜE * Satz * Faktor)- (AE * Satz)) | L95: AG
F96: ÜE | G96: 384.54
F97: AE | G97: 520
F98: Satz | G98: 0.247
F99: Faktor | G99: 2
H100: =G96*G98 -> 94.98138 | I100: =G96*G98*G99 -> 189.96276 | J100: =G97*G98 -> 128.44 | K100: =I100-J100 -> 61.52276 | L100: =H100-K100 -> 33.45862

Sheet Listen (hidden)
B1: Stand: | C1: 2019-09-13 | G1: Jahr | I1: Zusatz KV | J1: RV | K1: AV | L1: PV | M1: RV Knappsch. | N1: KV allg | O1: KV erm | P1: Untergrenze | Q1: Obergrenze | R1: AG-Ant. Sachsen | S1: AN-Ant. Sachsen | T1: Insolvenzgeld | U1: Zuschlag wg Kinderlosigkeit | AA1: SUCH | AB1: SFall-Nr | AC1: Zeile | AD1: Spalte | AE1: Text | AF1: SFall | AI1: Name | AJ1: Bezug | AK1: Blatt | AL1: Spalte | AM1: Zeile
B2: KV | AA2: =AB2*100+AC2 -> 105 | AB2: 1 | AC2: 5 | AD2: 4 | AE2: Monatliches Arbeitsentgelt: | AF2: ohne Sonderfall | AI2: n_W5_Bez | AJ2: =Dialog!$D$5 | AK2: =MID(AJ2,2,FIND("!",AJ2,1)-2) -> Dialog | AL2: =MID(AJ2,FIND("!",AJ2,1)+2,FIND("$",AJ2,FIND("!",AJ2,1)+2)-FIND("!",AJ2,1)-2) -> D | AM2: =VALUE(MID(AJ2,FIND("$",AJ2,FIND("!",AJ2,1)+2)+1,5)) -> 5
B3: 1 | C3: 0.002 | F3: 1 | G3: 2019 | H3: =I3+J3+K3+L3+N3 -> 39.65 | I3: 0.9 | J3: 18.6 | K3: 2.5 | L3: 3.05 | M3: 24.7 | N3: 14.6 | O3: 14 | P3: 450 | Q3: 1300 | R3: 0.01025 | T3: 0.0006 | U3: 0.25 | AA3: 107 | AB3: 1 | AC3: 7 | AD3: 4 | AE3: Übergangsbereichsentgelt: | AF3: ohne Sonderfall | AI3: n_W5 | AJ3: =Dialog!$E$5 | AK3: Dialog | AL3: E | AM3: 5
B4: 2 | C4: 0.003 | F4: =F3+1 -> 2 | G4: 2018 | H4: =I4+J4+K4+L4+N4 -> 39.75 | I4: 1 | J4: 18.6 | K4: 3 | L4: 2.55 | M4: 24.7 | N4: 14.6 | O4: 14 | P4: 450 | Q4: 850 | R4: 0.00775 | T4: 0.0006 | U4: 0.25 | AA4: 205 | AB4: 2 | AC4: 5 | AD4: 4 | AE4: Arbeitsentgelt für diese Tätigkeit | AF4: Mehrfachbeschäftigung | AI4: KV_Text | AJ4: =Dialog!$G$5 | AK4: Dialog | AL4: G | AM4: 5
B5: 3 | C5: 0.0035 | F5: =F4+1 -> 3 | G5: 2017 | H5: =I5+J5+K5+L5+N5 -> 39.95 | I5: 1.1 | J5: 18.7 | K5: 3 | L5: 2.55 | M5: 24.8 | N5: 14.6 | O5: 14 | P5: 450 | Q5: 850 | R5: 0.00775 | T5: 0.0009 | U5: 0.25 | AA5: 207 | AB5: 2 | AC5: 7 | AD5: 4 | AE5: Übergangsbereichsentgelt für diese Tätigkeit: | AF5: Mehrfachbeschäftigung | AI5: S_Sonder_2_Stunden_Bez | AJ5: =Dialog!$K$5 | AK5: Dialog | AL5: K | AM5: 5
B6: 4 | C6: 0.0039 | F6: =F5+1 -> 4 | G6: 2016 | H6: =I6+J6+K6+L6+N6 -> 39.75 | I6: 1.1 | J6: 18.7 | K6: 3 | L6: 2.35 | M6: 24.8 | N6: 14.6 | O6: 14 | P6: 450 | Q6: 850 | R6: 0.00675 | S6: 0.01675 | T6: 0.0012 | U6: 0.25 | AA6: 209 | AB6: 2 | AC6: 9 | AD6: 4 | AE6: gesamtes monatliches Arbeitsentgelt: | AF6: Mehrfachbeschäftigung | AI6: S_Sonder_2_Tage_Bez | AJ6: =Dialog!$K$5 | AK6: Dialog | AL6: K | AM6: 5
B7: 5 | C7: 0.004 | F7: =F6+1 -> 5 | G7: 2015 | H7: =I7+J7+K7+L7+N7 -> 39.55 | I7: 0.9 | J7: 18.7 | K7: 3 | L7: 2.35 | M7: 24.8 | N7: 14.6 | O7: 14 | P7: 450 | Q7: 850 | R7: 0.00675 | S7: 0.01675 | T7: 0.0015 | U7: 0.25 | AA7: 211 | AB7: 2 | AC7: 11 | AD7: 4 | AE7: gesamtes monatliches Übergangsbereichsentgelt: | AF7: Mehrfachbeschäftigung | AI7: S_Sonder_2_Stunden | AJ7: =Dialog!$L$5 | AK7: Dialog | AL7: L | AM7: 5
B8: 6 | C8: 0.0044 | AA8: =AB8*100+AC8 -> 305 | AB8: 3 | AC8: 5 | AD8: 4 | AE8: Teilmonatsentgelt: | AF8: teilmonatl. Arbeitsentgelt | AI8: S_Sonder_2_Tage | AJ8: =Dialog!$L$5 | AK8: Dialog | AL8: L | AM8: 5
B9: 7 | C9: 0.005 | AA9: 307 | AB9: 3 | AC9: 7 | AD9: 4 | AE9: Teil-Übergangsbereichsentgelt: | AF9: teilmonatl. Arbeitsentgelt | AI9: n_W7_Bez | AJ9: =Dialog!$D$7 | AK9: Dialog | AL9: D | AM9: 7
B10: 8 | C10: 0.006 | AA10: 309 | AB10: 3 | AC10: 9 | AD10: 4 | AE10: fiktives monatliches Arbeitsentgelt: | AF10: teilmonatl. Arbeitsentgelt | AI10: n_W7 | AJ10: =Dialog!$E$7 | AK10: Dialog | AL10: E | AM10: 7
B11: 9 | C11: 0.0065 | AA11: 311 | AB11: 3 | AC11: 11 | AD11: 4 | AE11: fiktives monatliches Übergangsbereichsentgelt: | AF11: teilmonatl. Arbeitsentgelt | AI11: RV_Text | AJ11: =Dialog!$G$7 | AK11: Dialog | AL11: G | AM11: 7
B12: 10 | C12: 0.007 | AA12: 405 | AB12: 4 | AC12: 5 | AD12: 4 | AE12: Arbeitsentgelt gesamt: | AF12: monatliches Arbeitsentgelt plus Einmalzahlung | AI12: S_Sonder_2_WoStunden_Bez | AJ12: =Dialog!$K$7 | AK12: Dialog | AL12: K | AM12: 7
B13: 11 | C13: 0.0079 | AA13: 407 | AB13: 4 | AC13: 7 | AD13: 4 | AE13: Übergangsbereichsentgelt gesamt: | AF13: monatliches Arbeitsentgelt plus Einmalzahlung | AI13: S_Sonder_2_WoStunden | AJ13: =Dialog!$L$7 | AK13: Dialog | AL13: L | AM13: 7
B14: 12 | C14: 0.008 | AA14: 409 | AB14: 4 | AC14: 9 | AD14: 4 | AE14: monatliches Arbeitsentgelt: | AF14: monatliches Arbeitsentgelt plus Einmalzahlung | AI14: n_W9_Bez | AJ14: =Dialog!$D$9 | AK14: Dialog | AL14: D | AM14: 9
B15: 13 | C15: 0.0089 | AA15: 411 | AB15: 4 | AC15: 11 | AD15: 4 | AE15: Einmalzahlung | AF15: monatliches Arbeitsentgelt plus Einmalzahlung | AI15: n_W9 | AJ15: =Dialog!$E$9 | AK15: Dialog | AL15: E | AM15: 9
B16: 14 | C16: 0.009 | AA16: 505 | AB16: 5 | AC16: 5 | AD16: 4 | AE16: Arbeitsentgelt für das zu bewertende BV | AF16: Mehrfachbeschäftigung mit teilmonatl. Arbeitsentgelt | AI16: AV_Text | AJ16: =Dialog!$G$9 | AK16: Dialog | AL16: G | AM16: 9
B17: 15 | C17: 0.0094 | AA17: 507 | AB17: 5 | AC17: 7 | AD17: 4 | AE17: Übergangsbereichsentgelt für dieses BV | AF17: Mehrfachbeschäftigung mit teilmonatl. Arbeitsentgelt | AI17: n_W11_Bez | AJ17: =Dialog!$D$11 | AK17: Dialog | AL17: D | AM17: 11
B18: 16 | C18: 0.0098 | AA18: 509 | AB18: 5 | AC18: 9 | AD18: 4 | AE18: gesamtes monatliches Übergangsbereichsentgelt: | AF18: Mehrfachbeschäftigung mit teilmonatl. Arbeitsentgelt | AI18: n_W11 | AJ18: =Dialog!$E$11 | AK18: Dialog | AL18: E | AM18: 11
B19: 17 | C19: 0.0099 | F19: Auswahl | G19: Beitragszeitraum | H19: Summe SV | I19: Zusatz KV | J19: RV | K19: AV | L19: PV | M19: RV Knappsch. | N19: KV allg | O19: KV erm | P19: Untergrenze | Q19: Obergrenze | R19: AG-Ant. Sachsen | S19: AN-Ant. Sachsen | T19: Insolvenzgeld | U19: Zuschlag wg Kinderlosigkeit | AA19: 511 | AB19: 5 | AC19: 11 | AD19: 4 | AE19: gesamtes fiktives Arbeitsentgelt: | AF19: Mehrfachbeschäftigung mit teilmonatl. Arbeitsentgelt | AI19: PV_Text | AJ19: =Dialog!$G$11 | AK19: Dialog | AL19: G | AM19: 11
B20: 18 | C20: 0.01 | F20: 1 | G20: =F20+1 -> 2 | H20: =G20+1 -> 3 | I20: 4 | J20: 5 | K20: 6 | L20: 7 | M20: 8 | N20: 9 | O20: 10 | P20: 11 | Q20: 12 | R20: 13 | S20: 14 | T20: 15 | U20: 16 | AA20: 513 | AB20: 5 | AC20: 13 | AD20: 4 | AE20: gesamtes fiktives Übergangsbereichsentgelt: | AF20: Mehrfachbeschäftigung mit teilmonatl. Arbeitsentgelt | AI20: S_Sonder_2_Stunden_B_Bez | AJ20: =Dialog!$K$11 | AK20: Dialog | AL20: K | AM20: 11
B21: 19 | C21: 0.0105 | AA21: 605 | AB21: 6 | AC21: 5 | AD21: 4 | AE21: Arbeitsentgelt gesamt: | AF21: teilmonatl. Arbeitsentgelt plus Einmalzahlung | AI21: S_Sonder_2_Stunden_B | AJ21: =Dialog!$L$11 | AK21: Dialog | AL21: L | AM21: 11
B22: 20 | C22: 0.0106 | AA22: 607 | AB22: 6 | AC22: 7 | AD22: 4 | AE22: Übergangsbereichsentgelt gesamt: | AF22: teilmonatl. Arbeitsentgelt plus Einmalzahlung | AI22: n_W13_Bez | AJ22: =Dialog!$D$13 | AK22: Dialog | AL22: D | AM22: 13
B23: 21 | C23: 0.0108 | AA23: 609 | AB23: 6 | AC23: 9 | AD23: 4 | AE23: fiktives monatliches Arbeitsentgelt: | AF23: teilmonatl. Arbeitsentgelt plus Einmalzahlung | AI23: n_W13 | AJ23: =Dialog!$E$13 | AK23: Dialog | AL23: E | AM23: 13
B24: 22 | C24: 0.011 | AA24: 611 | AB24: 6 | AC24: 11 | AD24: 4 | AE24: fiktives monatliches Arbeitsentgelt gesamt: | AF24: teilmonatl. Arbeitsentgelt plus Einmalzahlung | AI24: S_Text | AJ24: =Dialog!$G$13 | AK24: Dialog | AL24: G | AM24: 13
B25: 23 | C25: 0.0115 | AA25: 613 | AB25: 6 | AC25: 13 | AD25: 4 | AE25: Teilmonatsentgelt: | AF25: teilmonatl. Arbeitsentgelt plus Einmalzahlung | AI25: S_Sonder_2_WoStunden_Bez_B | AJ25: =Dialog!$K$13 | AK25: Dialog | AL25: K | AM25: 13
B26: 24 | C26: 0.012 | AA26: 614 | AB26: 6 | AC26: 14 | AD26: 4 | AE26: Einmalzahlung: | AF26: teilmonatl. Arbeitsentgelt plus Einmalzahlung | AI26: S_Sonder_2_WoStunden_B | AJ26: =Dialog!$L$13 | AK26: Dialog | AL26: L | AM26: 13
B27: 25 | C27: 0.013 | AA27: 705 | AB27: 7 | AC27: 5 | AD27: 4 | AE27: Monatliches Arbeitsentgelt: | AF27: monatl. Arbeitseinkommen kleiner Untergrenze | AI27: n_W14_Bez | AJ27: =Dialog!$D$14 | AK27: Dialog | AL27: D | AM27: 14
B28: 26 | C28: 0.0134 | AA28: 707 | AB28: 7 | AC28: 7 | AD28: 4 | AE28: Übergangsbereichsentgelt: | AF28: monatl. Arbeitseinkommen kleiner Untergrenze | AI28: n_W14 | AJ28: =Dialog!$E$14 | AK28: Dialog | AL28: E | AM28: 14
B29: 27 | C29: 0.0139 | AA29: 805 | AB29: 8 | AC29: 5 | AD29: 4 | AE29: Teilmonatsentgelt: | AF29: monatl. Arbeitseinkommen kleiner Untergrenze und mit teilmonatl. Arbeitsentgelt | AI29: nKV_ges | AJ29: =Dialog!$C$18 | AK29: Dialog | AL29: C | AM29: 18
B30: 28 | C30: 0.014 | AA30: 807 | AB30: 8 | AC30: 7 | AD30: 4 | AE30: Teil-Übergangsbereichsentgelt: | AF30: monatl. Arbeitseinkommen kleiner Untergrenze und mit teilmonatl. Arbeitsentgelt | AI30: nKV_AG | AJ30: =Dialog!$E$18 | AK30: Dialog | AL30: E | AM30: 18
B31: 29 | C31: 0.0144 | AA31: 809 | AB31: 8 | AC31: 9 | AD31: 4 | AE31: fiktives monatliches Arbeitsentgelt: | AF31: monatl. Arbeitseinkommen kleiner Untergrenze und mit teilmonatl. Arbeitsentgelt | AI31: nKV_AN | AJ31: =Dialog!$G$18 | AK31: Dialog | AL31: G | AM31: 18
B32: 30 | C32: 0.0149 | AA32: 811 | AB32: 8 | AC32: 11 | AD32: 4 | AE32: fiktives monatliches Übergangsbereichsentgelt: | AF32: monatl. Arbeitseinkommen kleiner Untergrenze und mit teilmonatl. Arbeitsentgelt | AI32: nKV_Satz | AJ32: =Dialog!$I$18 | AK32: Dialog | AL32: I | AM32: 18
B33: 31 | C33: 0.015 | AA33: 914 | AB33: 9 | AC33: 14 | AD33: 4 | AE33: Beitragsbemessungsgrundlage für RV: | AF33: - | AI33: nKV_Zu_ges | AJ33: =Dialog!$C$26 | AK33: Dialog | AL33: C | AM33: 20
B34: 32 | C34: 0.016 | AA34: 3214 | AB34: 32 | AC34: 14 | AE34: Beitragsbemessungsgrundlage für RV: | AF34: RV-Beitrag aus tatsächlichem Arbeitsentgelt | AI34: nKV_Zu_AG | AJ34: =Dialog!$E$26 | AK34: =MID(AJ34,2,FIND("!",AJ34,1)-2) -> Dialog | AL34: =MID(AJ34,FIND("!",AJ34,1)+2,FIND("$",AJ34,FIND("!",AJ34,1)+2)-FIND("!",AJ34,1)-2) -> E | AM34: 20
B35: 33 | C35: 0.017 | AA35: 3214 | AB35: 32 | AC35: 14 | AE35: Beitragsbemessungsgrundlage für RV: | AF35: RV-Beitrag aus tatsächlichem Arbeitsentgelt | AI35: nKV_Zu_AN | AJ35: =Dialog!$G$26 | AK35: Dialog | AL35: G | AM35: 20
B36: 34 | C36: 0.025 | AA36: 3414 | AB36: 34 | AC36: 14 | AE36: Beitragsbemessungsgrundlage für RV: | AF36: knappschaftl. RV-Beitrag aus tats. Arbeitsentgelt | AI36: nKV_Zu_Satz | AJ36: =Dialog!$I$26 | AK36: Dialog | AL36: I | AM36: 20
AA37: 3414 | AB37: 34 | AC37: 14 | AE37: Beitragsbemessungsgrundlage für RV: | AF37: knappschaftl. RV-Beitrag aus tats. Arbeitsentgelt | AI37: nRV_ges | AJ37: =Dialog!$C$20 | AK37: Dialog | AL37: C | AM37: 22
AI38: nRV_AG | AJ38: =Dialog!$E$20 | AK38: Dialog | AL38: E | AM38: 22
AI39: nRV_AN | AJ39: =Dialog!$G$20 | AK39: Dialog | AL39: G | AM39: 22
AI40: nRV_Satz | AJ40: =Dialog!$I$20 | AK40: Dialog | AL40: I | AM40: 22
AI41: nAV_ges | AJ41: =Dialog!$C$22 | AK41: Dialog | AL41: C | AM41: 24
AI42: nAV_AG | AJ42: =Dialog!$E$22 | AK42: Dialog | AL42: E | AM42: 24
AI43: nAV_AN | AJ43: =Dialog!$G$22 | AK43: Dialog | AL43: G | AM43: 24
AI44: nAV_Satz | AJ44: =Dialog!$I$22 | AK44: Dialog | AL44: I | AM44: 24
AI45: nPV_ges | AJ45: =Dialog!$C$24 | AK45: Dialog | AL45: C | AM45: 26
AI46: nPV_AG | AJ46: =Dialog!$E$24 | AK46: Dialog | AL46: E | AM46: 26
AI47: nPV_AN | AJ47: =Dialog!$G$24 | AK47: Dialog | AL47: G | AM47: 26
AI48: nPV_Satz | AJ48: =Dialog!$I$24 | AK48: Dialog | AL48: I | AM48: 26
AI49: nPV_Zu_ges | AJ49: =Dialog!$C$28 | AK49: Dialog | AL49: C | AM49: =VALUE(MID(AJ49,FIND("$",AJ49,FIND("!",AJ49,1)+2)+1,5)) -> 28
AI50: nPV_Zu_AG | AJ50: =Dialog!$E$28 | AK50: Dialog | AL50: E | AM50: 28
AI51: nPV_Zu_AN | AJ51: =Dialog!$G$28 | AK51: Dialog | AL51: G | AM51: 28
AI52: nPV_Zu_Satz | AJ52: =Dialog!$I$28 | AK52: Dialog | AL52: I | AM52: 28
AI53: nU1_ges | AJ53: =Dialog!$C$32 | AK53: Dialog | AL53: C | AM53: 32
AI54: nU1_AG | AJ54: =Dialog!$E$32 | AK54: Dialog | AL54: E | AM54: 32
AI55: nU1_Satz | AJ55: =Dialog!$I$32 | AK55: Dialog | AL55: I | AM55: 32
AI56: nU2_ges | AJ56: =Dialog!$C$33 | AK56: Dialog | AL56: C | AM56: 33
AI57: nU2_AG | AJ57: =Dialog!$E$33 | AK57: Dialog | AL57: E | AM57: 33
AI58: nU2_Satz | AJ58: =Dialog!$I$33 | AK58: Dialog | AL58: I | AM58: 33
AI59: nU3_ges | AJ59: =Dialog!$C$34 | AK59: Dialog | AL59: C | AM59: 34
AI60: nU3_AG | AJ60: =Dialog!$E$34 | AK60: Dialog | AL60: E | AM60: 34
AI61: nU3_Satz | AJ61: =Dialog!$I$34 | AK61: Dialog | AL61: I | AM61: 34
AI62: Druckbereich | AJ62: =Listen!$A$1:$A$83 | AK62: Listen | AL62: A
AI63: Liste_Bezeichnung | AJ63: =Listen!$AA$1:$AJ$44 | AK63: Listen | AL63: AA
AI64: KV | AJ64: =Listen!$B$3:$C$83 | AK64: Listen | AL64: B
AI65: drop_KV | AJ65: =Listen!$C$3:$C$44 | AK65: Listen | AL65: C
AI66: Jahr | AJ66: =Listen!$F$3:$U$6 | AK66: =MID(AJ66,2,FIND("!",AJ66,1)-2) -> Listen | AL66: =MID(AJ66,FIND("!",AJ66,1)+2,FIND("$",AJ66,FIND("!",AJ66,1)+2)-FIND("!",AJ66,1)-2) -> F
AI67: drop_Jahr | AJ67: =Listen!$G$3:$G$3 | AK67: Listen | AL67: G
AI68: Gew_Jahr | AJ68: =Steuerung!$C$2 | AK68: Steuerung | AL68: C | AM68: 2
AI69: LC_Liste_Jahr | AJ69: =Steuerung!$B$3 | AK69: Steuerung | AL69: B | AM69: 3
AI70: Zeitraum | AJ70: =Steuerung!$C$3 | AK70: Steuerung | AL70: C | AM70: 3
AI71: UGrenz | AJ71: =Steuerung!$C$4 | AK71: Steuerung | AL71: C | AM71: 4
AI72: OGrenz | AJ72: =Steuerung!$C$5 | AK72: Steuerung | AL72: C | AM72: 5
AI73: Faktor | AJ73: =Steuerung!$C$6 | AK73: Steuerung | AL73: C | AM73: 6
AI74: nRV_Satz_Jahr | AJ74: =Steuerung!$C$9 | AK74: Steuerung | AL74: C | AM74: 9
AI75: nAV_Satz_Jahr | AJ75: =Steuerung!$C$10 | AK75: Steuerung | AL75: C | AM75: 10
AI76: nPV_Satz_Jahr | AJ76: =Steuerung!$C$11 | AK76: Steuerung | AL76: C | AM76: 11
AI77: S_KV_allg_erm.BS | AJ77: =Steuerung!$B$15 | AK77: Steuerung | AL77: B | AM77: 15
AI78: BS_KV_allg | AJ78: =Steuerung!$C$15 | AK78: Steuerung | AL78: C | AM78: 15
AI79: S_BS_allg | AJ79: =Steuerung!$G$15 | AK79: Steuerung | AL79: G | AM79: 15
AI80: LC_Liste_KV_Zu | AJ80: =Steuerung!$B$16 | AK80: Steuerung | AL80: B | AM80: 16
AI81: BS_KV_Zu | AJ81: =Steuerung!$C$16 | AK81: Steuerung | AL81: C | AM81: =VALUE(MID(AJ81,FIND("$",AJ81,FIND("!",AJ81,1)+2)+1,5)) -> 16
AI82: S_BS_ermäßigt | AJ82: =Steuerung!$G$16 | AK82: Steuerung | AL82: G | AM82: 16
AI83: nRV_Knapp_Jahr | AJ83: =Steuerung!$C$17 | AK83: Steuerung | AL83: C | AM83: 17
AI84: nPV_Sachsen_AG_Jahr | AJ84: =Steuerung!$C$18 | AK84: Steuerung | AL84: C | AM84: 18
AI85: S_PV_Zu | AJ85: =Steuerung!$B$20 | AK85: Steuerung | AL85: B | AM85: 20
AI86: BS_PV_Zu | AJ86: =Steuerung!$C$20 | AK86: Steuerung | AL86: C | AM86: 20
AI87: S_U1 | AJ87: =Steuerung!$B$21 | AK87: Steuerung | AL87: B | AM87: 21
AI88: S_U1_Satz | AJ88: =Steuerung!$C$21 | AK88: Steuerung | AL88: C | AM88: 21
AI89: S_U2 | AJ89: =Steuerung!$B$22 | AK89: Steuerung | AL89: B | AM89: 22
AI90: S_U2_Satz | AJ90: =Steuerung!$C$22 | AK90: Steuerung | AL90: C | AM90: 22
AI91: S_U3 | AJ91: =Steuerung!$B$23 | AK91: Steuerung | AL91: B | AM91: 23
C92: =#REF! ->  | AI92: S_U3_Satz | AJ92: =Steuerung!$C$23 | AK92: Steuerung | AL92: C | AM92: 23
AI93: S_KV_PV_frei | AJ93: =Steuerung!$B$25 | AK93: Steuerung | AL93: B | AM93: 25
AI94: S_PV_Sachsen | AJ94: =Steuerung!$B$26 | AK94: Steuerung | AL94: B | AM94: 26
AI95: S_RV_frei | AJ95: =Steuerung!$B$27 | AK95: Steuerung | AL95: B | AM95: 27
AI96: S_RV_aus_t.E. | AJ96: =Steuerung!$B$28 | AK96: Steuerung | AL96: B | AM96: 28
AI97: S_RV_Knapp | AJ97: =Steuerung!$B$29 | AK97: Steuerung | AL97: B | AM97: 29
AI98: S_AV_nur | AJ98: =Steuerung!$B$30 | AK98: =MID(AJ98,2,FIND("!",AJ98,1)-2) -> Steuerung | AL98: =MID(AJ98,FIND("!",AJ98,1)+2,FIND("$",AJ98,FIND("!",AJ98,1)+2)-FIND("!",AJ98,1)-2) -> B | AM98: 30
AI99: S_AV_frei | AJ99: =Steuerung!$B$31 | AK99: Steuerung | AL99: B | AM99: 31
AI100: S_SGB_III | AJ100: =Steuerung!$B$32 | AK100: Steuerung | AL100: B | AM100: 32
AI101: S_Sonder_1 | AJ101: =Steuerung!$B$33 | AK101: Steuerung | AL101: B | AM101: 33
AI102: S_Sonder_2 | AJ102: =Steuerung!$B$34 | AK102: Steuerung | AL102: B | AM102: 34
AI103: S_Sonder_2_Opt | AJ103: =Steuerung!$B$35 | AK103: Steuerung | AL103: B | AM103: 35
AI104: S_Sonder_2_Opt1 | AJ104: =Steuerung!$G$35 | AK104: Steuerung | AL104: G | AM104: 35
AI105: S_Mehrfach | AJ105: =Steuerung!$B$36 | AK105: Steuerung | AL105: B | AM105: 36
AI106: S_Sonder_2_Opt2 | AJ106: =Steuerung!$G$36 | AK106: Steuerung | AL106: G | AM106: 36
AI107: S_Sonder_4 | AJ107: =Steuerung!$B$37 | AK107: Steuerung | AL107: B | AM107: 37
AI108: S_Sonder_5 | AJ108: =Steuerung!$B$38 | AK108: Steuerung | AL108: B | AM108: 38
AI109: nAuswahl_Sonder | AJ109: =Steuerung!$C$40 | AK109: Steuerung | AL109: C | AM109: 40
AI110: S_Sonder_3_Quot | AJ110: =Steuerung!$B$55 | AK110: Steuerung | AL110: B | AM110: 55
AI111: S_Sonder_aktuell | AJ111: =Steuerung!$C$69 | AK111: Steuerung | AL111: C | AM111: 69
